Workbook

Sheet MSU
B1: Pasi Vironen | E1: 28.11.1962
B2: SUPERPESIS | E2: Runkosarja | I2: Kärkilyönnit (KL), pesänvälit | P2: Ylempi loppusarja | W2: Alempi loppusarja | AD2: Arvo-ottelut | AH2: Mitalit
B3: Vuosi | C3: Sija | D3: Seura | E3: OTT | F3: KUN | G3: LÖI | H3: TOI | I3: KL | J3: 0 > 1 | K3: 1 > 2 | L3: 2 > 3 | M3: 3 > k | N3: KL-% | P3: OTT | Q3: KUN | R3: LÖI | S3: TOI | T3: KL | U3: KL-% | W3: OTT | X3: KUN | Y3: LÖI | Z3: TOI | AA3: KL | AB3: KL-% | AD3: IL | AE3: LL | AF3: hSM | AG3: K | AH3: H | AI3: P
B4: 1984 | C4: 7. | D4: JuPa | F4: suomensarja
B5: 1985 | C5: 6. | D5: JuPa | F5: suomensarja
B6: 1986 | C6: 1. | D6: JuPa | F6: suomensarja
B7: 1987 | C7: 11. | D7: JuPa | F7: ykkössarja
B8: 1986 | C8: 1. | D8: JuPa | F8: suomensarja
B9: 1989 | C9: 8. | D9: JuPa | F9: ykkössarja
B10: 1990 | C10: 10. | D10: HoNsU | F10: ykkössarja
B11: 1991 | C11: 4. | D11: JuPa | F11: ykkössarja
B12: 1992 | C12: 5. | D12: JuPa | F12: ykköspesis
B13: 1993 | C13: 4. | D13: JuPa | F13: ykköspesis
B14: 1994 | C14: 6. | D14: JuPa | F14: ykköspesis | W14: 13 | X14: 0 | Y14: 6 | Z14: 8 | AA14: 51 | AB14: 48.6 %
B15: 1995
B16: 1996 | C16: 9. | D16: JuPa | E16: 4 | F16: 0 | G16: 0 | H16: 1 | I16: 2 | J16: 1 | K16: 1 | L16: 0 | M16: 0 | N16: 50.0 %
B17: Yhteensä | E17: 4 | F17: 0 | G17: 0 | H17: 1 | I17: 2 | J17: 1 | K17: 1 | L17: 0 | M17: 0 | N17: 50.0 % | P17: 0 | Q17: 0 | R17: 0 | S17: 0 | T17: 0 | U17: 0.0 % | W17: =PRODUCT(E23) -> 13 | X17: =PRODUCT(F23) -> 0 | Y17: 6 | Z17: 8 | AA17: 51 | AB17: =PRODUCT(N23) -> 48.6 % | AD17: 0 | AE17: 0 | AF17: 0 | AG17: 0 | AH17: 0 | AI17: 0
B18: Pesispörssi | D18: 3.0
B20: URA SUPERISSA | E20: OTT | F20: KUN | G20: LÖI | H20: TOI | I20: KL | K20: ka/L | L20: ka/T | M20: ka/KL | N20: KL-% | P20: ENSIMMÄISET
B21: Runkosarja | E21: 4 | F21: 0 | G21: 0 | H21: 1 | I21: 2 | K21: 0.00 | L21: 0.25 | M21: 0.50 | N21: 50.0 % | P21: Ottelu
B22: Ylempi loppusarja | P22: Lyöty
B23: Alempi loppusarja | E23: 13 | F23: 0 | G23: 6 | H23: 8 | I23: 51 | K23: 0.46 | L23: 0.62 | M23: 3.92 | N23: 48.6 % | P23: Tuotu
B24: KAIKKI | E24: 17 | F24: 0 | G24: 6 | H24: 9 | I24: 53 | K24: 0.35 | L24: 0.53 | M24: 3.12 | N24: 48.6 % | P24: Kunnari
B26: Seurat | D26: JuPa = Juvan Pallo (1950)
D27: HoNsU = Hongikon Nuorisoseuran Urheilijat (1948)

Sheet MYP, MSS
B1: Pasi Vironen | E1: 28.11.1962
B2: YKKÖSPESIS | E2: Runkosarja | L2: Runkosarja TOP-10 | Q2: Jatkosarjat | X2: SUOMENSARJA | AA2: Runkosarja | AH2: Runkosarja TOP-10 | AM2: Jatkosarjat
B3: Vuosi | C3: Sija | D3: Seura | E3: OTT | F3: KUN | G3: LÖI | H3: TOI | I3: KL | J3: KL-% | L3: LÖI | M3: TOI | N3: L+T | O3: KL | Q3: OTT | R3: KUN | S3: LÖI | T3: TOI | U3: KL | V3: KL-% | X3: Vuosi | Y3: Sija | Z3: Seura | AA3: OTT | AB3: KUN | AC3: LÖI | AD3: TOI | AE3: KL | AF3: KL-% | AH3: LÖI | AI3: TOI | AJ3: L+T | AK3: KL | AM3: OTT | AN3: KUN | AO3: LÖI | AP3: TOI | AQ3: KL | AR3: KL-%
X4: 1984 | Y4: 7. | Z4: JuPa | AA4: 17 | AB4: 0 | AC4: 1 | AD4: 26
X5: 1985 | Y5: 6. | Z5: JuPa | AA5: 14 | AB5: 0 | AC5: 3 | AD5: 17
X6: 1986 | Y6: 1. | Z6: JuPa | AA6: 21 | AB6: 2 | AC6: 13 | AD6: 49 | AI6: 3. | AJ6: 9.
B7: 1987 | C7: 11. | D7: JuPa | E7: 22 | F7: 0 | G7: 3 | H7: 15
X8: 1988 | Y8: 1. | Z8: JuPa | AA8: 22 | AB8: 0 | AC8: 5 | AD8: 54 | AI8: 3. | AJ8: 8.
B9: 1989 | C9: 8. | D9: JuPa | E9: 22 | F9: 0 | G9: 7 | H9: 29
B10: 1990 | C10: 4. | D10: HoNsU | E10: 19 | F10: 0 | G10: 3 | H10: 9
B11: 1991 | C11: 4. | D11: JuPa | E11: 21 | F11: 0 | G11: 4 | H11: 7 | I11: 44
B12: 1992 | C12: 5. | D12: JuPa | E12: 20 | F12: 0 | G12: 4 | H12: 17 | I12: 84
B13: 1993 | C13: 4. | D13: JuPa | E13: 25 | F13: 1 | G13: 13 | H13: 37 | I13: 137 | M13: 9.
B14: 1994 | C14: 6. | D14: JuPa | E14: 14 | F14: 0 | G14: 6 | H14: 11 | I14: 54
B15: YHTEENSÄ | E15: =SUM(E4:E14) -> 143 | F15: =SUM(F4:F14) -> 1 | G15: =SUM(G4:G14) -> 40 | H15: =SUM(H4:H14) -> 125 | I15: =SUM(I4:I14) -> 319 | J15: 0.0 % | K15: =SUM(K4:K14) -> 0 | Q15: =SUM(Q4:Q14) -> 0 | R15: =SUM(R4:R14) -> 0 | S15: =SUM(S4:S14) -> 0 | T15: =SUM(T4:T14) -> 0 | U15: =SUM(U4:U14) -> 0 | V15: 0.0 % | W15: =SUM(W4:W14) -> 0 | X15: YHTEENSÄ | AA15: =SUM(AA4:AA14) -> 74 | AB15: =SUM(AB4:AB14) -> 2 | AC15: =SUM(AC4:AC14) -> 22 | AD15: =SUM(AD4:AD14) -> 146 | AE15: =SUM(AE4:AE14) -> 0 | AF15: 0.0 % | AG15: =SUM(AG4:AG14) -> 0 | AM15: =SUM(AM4:AM14) -> 0 | AN15: =SUM(AN4:AN14) -> 0 | AO15: =SUM(AO4:AO14) -> 0 | AP15: =SUM(AP4:AP14) -> 0 | AQ15: =SUM(AQ4:AQ14) -> 0 | AR15: 0.0 % | AS15: =SUM(AS4:AS14) -> 0
B17: KAIKKI OTTELUT | E17: OTT | F17: KUN | G17: LÖI | H17: TOI | I17: KL | J17: KL-% | L17: ka/L | M17: ka/T | N17: ka/l+t | O17: ka/kl | R17: Seurat | T17: JuPa = Juvan Pallo (1950)
B18: SUPERPESIS | E18: 17 | F18: 0 | G18: 6 | H18: 9 | I18: 53 | J18: 48.6 % | K18: =PRODUCT(I18/J18) -> 109.0534979 | L18: =PRODUCT((F18+G18)/E18) -> 0.35 | M18: =PRODUCT(H18/E18) -> 0.53 | N18: =PRODUCT((F18+G18+H18)/E18) -> 0.88 | O18: =PRODUCT(I18/E18) -> 3.12 | T18: HoNsU = Hongikon Nuorisoseuran Urheilijat (1948)
B19: YKKÖSPESIS | E19: =PRODUCT(E15+Q15) -> 143 | F19: =PRODUCT(F15+R15) -> 1 | G19: =PRODUCT(G15+S15) -> 40 | H19: =PRODUCT(H15+T15) -> 125 | I19: =PRODUCT(I15+U15) -> 319 | J19: 0.0 % | K19: =PRODUCT(K15+W15) -> 0 | L19: =PRODUCT((F19+G19)/E19) -> 0.29 | M19: =PRODUCT(H19/E19) -> 0.87 | N19: =PRODUCT((F19+G19+H19)/E19) -> 1.16 | O19: =PRODUCT(I19/80) -> 3.99
B20: SUOMENSARJA | E20: =PRODUCT(AA15+AM15) -> 74 | F20: =PRODUCT(AB15+AN15) -> 2 | G20: =PRODUCT(AC15+AO15) -> 22 | H20: =PRODUCT(AD15+AP15) -> 146 | I20: =PRODUCT(AE15+AQ15) -> 0 | J20: 0.0 % | K20: =PRODUCT(AG15+AS15) -> 0 | L20: =PRODUCT((F20+G20)/E20) -> 0.32 | M20: =PRODUCT(H20/E20) -> 1.97 | N20: =PRODUCT((F20+G20+H20)/E20) -> 2.30 | O20: =PRODUCT(I20/E20) -> 0.00
B21: YHTEENSÄ | E21: =SUM(E18:E20) -> 234 | F21: =SUM(F18:F20) -> 3 | G21: 68 | H21: 280 | I21: 372 | J21: 0.0 % | K21: =SUM(K18:K20) -> 109.0534979 | L21: =PRODUCT((F21+G21)/E21) -> 0.30 | M21: =PRODUCT(H21/E21) -> 1.20 | N21: =PRODUCT((F21+G21+H21)/E21) -> 1.50 | O21: =PRODUCT(I21/97) -> 3.84
